bitfinex-derivatives/quotes_ETHF0:USTF0_20250212
["timestamp","ask_amount","ask_price","bid_price","bid_amount"]
[1739401366103,0.72644,2752.8,2752.6,0.00544969]
[1739401366303,2.535,2752.9,2752.6,0.00544969]
[1739401366496,3.93422,2752.8,2752.6,0.00544969]
[1739401366804,2.535,2752.9,2752.6,0.00544969]
[1739401367396,3.26141,2752.9,2752.6,0.00544969]
[1739401367602,2.535,2752.9,2752.6,0.73191969]
[1739401367900,4.25507278,2753.4,2752.8,3.2078]
[1739401367901,2.535,2753.3,2752.8,3.2078]
[1739401368093,3.2078,2753.4,2752.8,3.2078]
[1739401368294,3.2078,2753.4,2753.1,0.72632]
[1739401368490,3.93407,2753.4,2753.0,3.2078]
[1739401368696,3.2078,2753.4,2752.9,2.3218]
[1739401368891,0.72625,2753.5,2753.0,0.72636]
[1739401369097,3.2078,2754.0,2753.0,3.2078]
[1739401369301,2.535,2753.9,2752.8,1.81601]
[1739401369503,2.535,2753.9,2752.9,3.2078]
[1739401369803,2.535,2753.9,2752.7,3.2078]
[1739401370005,4.25507278,2753.8,2753.1,0.72633]
[1739401370199,0.72625,2753.5,2753.1,0.72633]
[1739401370402,3.2078,2753.4,2752.7,3.2078]
[1739401370605,2.535,2753.3,2753.1,1.4529]
[1739401371004,3.2078,2753.7,2753.1,1.4529]
[1739401371206,5.7418,2753.7,2753.3,0.72628]
[1739401371510,6.46799,2753.7,2753.3,0.72628]
[1739401372099,5.7418,2753.7,2753.1,1.7434]
[1739401372499,0.72632,2753.3,2753.1,1.7434]
[1739401372694,5.7418,2753.7,2753.1,1.7434]
[1739401372900,0.72632,2753.3,2753.1,1.7434]
[1739401373108,0.72632,2753.2,2753.1,1.7434]
[1739401373499,0.72632,2753.2,2753.1,0.2905]
[1739401373805,3.2078,2753.3,2752.6,0.00544969]
[1739401373998,0.72645,2752.7,2752.6,0.00544969]
[1739401374609,5.7418,2752.8,2752.6,0.00544969]
[1739401374802,0.72645,2752.7,2752.6,0.00544969]
[1739401375204,6.46823,2752.8,2752.6,0.00544969]
[1739401375405,0.72645,2752.7,2752.6,0.00544969]
[1739401379305,0.72645,2752.7,2752.6,0.29604969]
[1739401381311,0.72645,2752.7,2751.4,5.5105]
[1739401381312,8.995,2752.7,2751.0,3.2078]
[1739401381507,4.25507278,2752.1,2751.0,3.2078]
[1739401381713,2.532,2752.2,2752.1,0.72661]
[1739401381913,7.46287278,2752.9,2751.9,3.2078]
[1739401382104,21.179,2753.8,2752.7,0.72645]
[1739401382105,2.532,2752.8,2752.7,0.72645]
[1739401382507,2.532,2752.8,2752.7,0.2906]
[1739401382716,2.532,2752.8,2752.7,1.01705]
[1739401382917,0.00544969,2753.0,2752.9,0.7264]
[1739401383116,4.25507278,2753.7,2752.7,9.4984]
[1739401383308,3.2078,2753.9,2753.4,3.2078]
[1739401383507,6.78707278,2754.1,2753.0,4.0304]
[1739401383816,2.531,2754.7,2753.6,3.2078]
[1739401384218,7.46287278,2754.9,2753.4,1.4527]
[1739401384219,4.25507278,2754.5,2753.4,1.4527]
[1739401384420,0.00544969,2754.4,2753.9,3.21324969]
[1739401384619,0.00544969,2754.4,2754.2,0.72605]
[1739401384820,0.00544969,2754.4,2754.0,2.2901]
[1739401385319,0.00544969,2754.4,2754.1,0.72607]
[1739401385520,0.00544969,2754.4,2753.9,0.00544969]
[1739401385706,4.25507278,2754.1,2753.4,1.4527]
[1739401386110,3.93404,2753.5,2753.4,1.4527]
[1739401386310,4.25507278,2753.2,2753.0,0.8226]
[1739401386521,5.7378,2753.5,2753.0,0.8226]
[1739401386907,5.7378,2753.5,2753.0,0.82627733]
[1739401387219,2.53,2754.0,2753.6,0.7262]
[1739401387515,2.53,2754.0,2753.6,3.2078]
[1739401387819,0.72626,2753.5,2753.0,0.82627733]
[1739401388206,4.25507278,2753.7,2753.0,0.82627733]
[1739401388410,2.53,2754.0,2753.0,0.82627733]
[1739401388411,2.53,2753.9,2753.6,0.72619]
[1739401388611,7.46287278,2754.1,2753.6,0.7262]
[1739401388922,7.46287278,2754.1,2753.6,0.72621]
[1739401389107,7.46287278,2754.1,2753.6,3.93401]
[1739401389308,7.46287278,2754.5,2753.5,3.2078]
[1739401389509,7.46287278,2754.5,2753.8,3.2078]
[1739401389510,5.7368,2754.5,2753.8,3.2078]
[1739401389811,4.25507278,2755.3,2754.3,0.72603]
[1739401390011,4.25507278,2755.7,2754.3,6.0]
[1739401390220,4.25507278,2755.7,2754.2,3.2078]
[1739401390517,0.72563,2755.9,2755.3,0.72575]
[1739401390710,3.2078,2756.0,2755.3,3.2078]
[1739401390910,4.25507278,2755.7,2754.6,4.4833]
[1739401391109,4.25507278,2755.7,2755.4,0.00544969]
[1739401391318,4.98074278,2755.7,2755.4,0.00544969]
[1739401391614,2.53444969,2755.9,2755.4,0.00544969]
[1739401391615,0.00544969,2755.9,2755.4,0.00544969]
[1739401392422,0.72569,2755.7,2755.5,0.2903]
[1739401392718,4.25507278,2755.7,2755.5,0.2903]
[1739401392924,0.72569,2755.6,2755.5,0.2903]
[1739401393316,7.46287278,2755.7,2755.5,0.2903]
[1739401393715,0.72569,2755.6,2755.5,0.2903]
[1739401394125,9.2078,2755.6,2754.0,3.2078]
[1739401394319,4.25507278,2755.7,2753.6,2.1831]
[1739401394320,4.25507278,2754.7,2753.6,2.1831]
[1739401394514,2.527,2754.6,2753.6,2.1831]
[1739401394822,0.7261,2754.1,2753.6,2.1831]
[1739401395021,4.25507278,2754.3,2753.6,2.1831]
[1739401395216,0.00544969,2754.1,2753.6,2.18677733]
[1739401395824,0.00544969,2754.1,2754.0,0.72611]
[1739401396218,0.00544969,2754.1,2753.6,2.18677733]
[1739401396219,3.21324969,2754.1,2753.6,2.18677733]
[1739401396529,3.21324969,2754.1,2753.6,2.91298733]
[1739401396825,3.21324969,2754.1,2753.6,2.18677733]
[1739401397026,2.526,2754.0,2753.6,2.18677733]
[1739401397423,3.25212,2754.0,2753.6,2.18677733]
[1739401397627,3.25212,2754.0,2753.6,0.00367733]
[1739401397628,4.25507278,2753.9,2753.6,0.00367733]
[1739401397819,0.72619,2753.7,2753.6,0.00367733]
[1739401398930,2.526,2753.7,2753.6,0.00367733]
[1739401399325,2.526,2753.8,2753.6,0.00367733]
[1739401399922,3.93399,2753.7,2753.6,0.00367733]
[1739401400124,0.72619,2753.7,2753.6,0.00367733]
[1739401400318,2.526,2753.8,2753.6,0.00367733]
[1739401400518,0.72619,2753.7,2753.6,0.00367733]
[1739401401023,3.93399,2753.7,2753.6,7.33e-06]
[1739401401427,3.2078,2753.7,2753.6,7.33e-06]
[1739401401627,6.45899,2753.7,2753.6,7.33e-06]
[1739401402521,11.7328,2753.7,2753.4,0.59553733]
[1739401402724,4.98131278,2753.5,2753.4,0.59553733]
[1739401402921,4.25507278,2753.5,2753.4,0.59553733]
[1739401403132,4.98131278,2753.5,2753.4,0.59553733]
[1739401403429,2.525,2753.6,2753.4,0.59553733]
[1739401403633,3.2078,2753.7,2753.1,5.02367]
[1739401403922,0.00544969,2754.1,2753.7,0.72618]
[1739401404125,0.00544969,2754.1,2753.8,1.5789]
[1739401404334,3.93393,2753.9,2753.8,1.5789]
[1739401404523,0.00544969,2754.1,2753.8,1.5789]
[1739401404831,0.72613,2753.9,2753.8,1.5789]
[1739401405019,0.00544969,2754.1,2753.8,1.5789]
[1739401405227,0.00544969,2754.1,2753.8,1.8694]
[1739401405933,8.18900278,2753.9,2753.8,0.2905]
[1739401406326,2.52944969,2754.1,2753.8,0.2905]
[1739401406832,0.72613,2753.9,2753.8,0.2905]
[1739401407033,4.98120278,2753.9,2753.8,0.2905]
[1739401407921,4.25507278,2753.9,2753.1,1.5789]
[1739401408127,0.72617,2753.8,2753.3,0.72628]
[1739401408427,0.72629,2753.4,2753.1,1.5789]
[1739401408635,2.523,2753.5,2753.1,1.5789]
[1739401408829,2.523,2753.5,2753.1,2.30522]
[1739401409033,2.523,2753.5,2753.1,1.5789]
[1739401409228,2.523,2753.5,2753.2,0.7263]
[1739401409624,2.523,2753.5,2753.1,1.5789]
[1739401409833,2.523,2753.5,2753.2,0.7263]
[1739401410328,2.523,2753.5,2753.1,1.5789]
[1739401410726,3.2078,2753.2,2753.1,1.5789]
[1739401410930,11.80151278,2753.5,2753.0,0.8226]
[1739401411136,3.2078,2753.4,2753.0,0.8226]
[1739401411323,0.72629,2753.3,2753.0,0.8226]
[1739401411920,3.2078,2753.4,2753.0,0.8226]
[1739401412424,0.72635,2753.1,2753.0,0.8226]
[1739401412620,3.2078,2753.5,2753.0,1.1131]
[1739401412828,7.46287278,2753.9,2753.2,0.72629]
[1739401413124,3.2078,2753.9,2753.3,1.81574]
[1739401413331,3.2078,2753.9,2753.4,4.7966]
[1739401413525,3.2078,2753.9,2753.6,0.72619]
[1739401413923,3.2078,2753.9,2753.4,4.7966]
[1739401414127,0.72614,2753.9,2753.5,1.75933]
[1739401414830,3.2078,2754.0,2753.5,1.0331]
[1739401415025,0.00544969,2754.1,2754.0,0.72611]
[1739401415221,2.521,2754.6,2753.8,3.2078]
[1739401415419,2.521,2754.6,2754.0,3.2078]
[1739401415620,2.521,2754.6,2753.8,0.72616]
[1739401415830,4.25507278,2755.1,2753.9,3.2078]
[1739401416133,4.25507278,2754.7,2753.9,3.2078]
[1739401416339,4.25507278,2754.7,2754.2,0.00544969]
[1739401416633,0.72597,2754.6,2754.2,0.00544969]
[1739401416826,6.77607278,2754.7,2754.2,0.00544969]
[1739401417022,3.2078,2754.4,2754.2,0.00544969]
[1739401417333,6.77607278,2754.7,2754.2,0.00544969]
[1739401417534,3.93381,2754.4,2754.2,0.00544969]
[1739401417733,0.72601,2754.4,2754.2,0.00544969]
[1739401418138,8.18890278,2754.3,2754.2,0.00544969]
[1739401419030,4.98110278,2754.3,2754.2,0.00544969]
[1739401419235,7.46287278,2754.3,2754.2,0.00544969]
[1739401419527,4.25507278,2754.3,2754.2,0.29584969]
[1739401419933,9.98287278,2754.3,2754.2,0.29584969]
[1739401420233,10.70890278,2754.3,2754.2,0.29584969]
[1739401421325,10.70890278,2754.3,2754.2,0.00544969]
[1739401421635,11.21271013,2754.3,2754.2,0.00544969]
[1739401422033,0.72618,2753.8,2753.5,1.0331]
[1739401422235,0.72621,2753.6,2753.5,1.0331]
[1739401422641,5.7268,2753.7,2753.1,0.72634]
[1739401422829,0.72627,2753.4,2753.0,5.04726]
[1739401423229,0.50498653,2753.6,2753.0,4.3209]
[1739401423535,0.50498653,2753.6,2753.3,0.72628]
[1739401423729,0.50498653,2753.6,2753.4,0.72625]
[1739401424237,0.50498653,2753.6,2753.0,1.1131]
[1739401424434,3.02398653,2753.8,2753.3,3.2078]
[1739401424635,3.2078,2753.7,2753.5,0.72622]
[1739401425140,3.2078,2754.0,2753.3,3.2078]
[1739401425338,5.7258,2754.1,2753.3,5.02354]
[1739401426034,2.518,2754.1,2753.3,3.2078]
[1739401426340,3.24408,2754.1,2753.5,3.2078]
[1739401426540,2.518,2754.1,2753.8,0.72616]
[1739401426833,6.77307278,2754.3,2753.9,3.2078]
[1739401427029,6.77307278,2754.3,2754.2,0.72606]
[1739401427228,2.518,2754.3,2753.9,3.2078]
[1739401427425,2.518,2754.3,2754.2,0.72606]
[1739401427625,0.50526096,2754.5,2754.4,0.726]
[1739401427830,0.50526096,2754.5,2754.3,0.72601]
[1739401428029,3.2078,2754.6,2754.4,0.726]
[1739401428229,3.2078,2754.6,2754.5,0.72598]
[1739401428735,0.00544969,2754.8,2754.4,1.0327]
[1739401429039,0.00544969,2754.8,2754.5,1.5342]
[1739401429240,0.00544969,2754.8,2754.7,0.72592]
[1739401429442,0.00544969,2754.8,2754.6,0.72593]
[1739401430340,0.00544969,2754.8,2754.5,1.5342]
[1739401430536,4.25507278,2754.6,2754.4,1.0327]
[1739401430735,3.74664021,2754.5,2754.4,1.0327]
[1739401430937,3.02066021,2754.5,2754.4,1.0327]
[1739401431337,2.516,2754.5,2754.4,1.0327]
[1739401431635,3.24198,2754.5,2754.4,1.0327]
[1739401431842,2.516,2754.5,2754.4,1.0327]
[1739401432039,3.24198,2754.5,2754.4,1.0327]
[1739401432237,6.44978,2754.5,2754.4,1.0327]
[1739401432634,2.516,2754.5,2754.4,1.0327]
[1739401433845,2.516,2754.5,2754.4,1.3231]
[1739401434044,2.516,2754.5,2754.4,1.6135]
[1739401434341,5.7228,2754.6,2754.4,1.6135]
[1739401434644,5.7228,2754.6,2754.5,0.72598]
[1739401434939,5.7228,2754.6,2754.4,2.33949]
[1739401435241,5.7228,2754.6,2754.5,0.72598]
[1739401435942,5.7228,2754.6,2754.4,1.6135]
[1739401436243,0.73134969,2754.8,2754.5,0.72598]
[1739401436435,0.00544969,2754.8,2754.4,1.6135]
[1739401436632,2.514,2755.0,2754.7,3.2078]
[1739401436838,2.514,2755.3,2754.7,3.2078]
[1739401437439,0.72581,2755.2,2754.9,0.72586]
[1739401437743,2.514,2755.3,2754.7,3.2078]
[1739401437949,0.00544969,2755.3,2754.8,0.00544969]
[1739401438136,0.00544969,2755.3,2754.8,0.73131969]
[1739401438440,0.72579,2755.2,2754.9,0.72586]
[1739401438631,0.72584,2755.1,2754.8,0.73132969]
[1739401438834,0.72583,2755.1,2754.8,0.73134969]
[1739401439044,0.00544969,2755.3,2754.8,0.00544969]
[1739401439341,0.72587,2754.9,2754.8,0.00544969]
[1739401439546,3.93367,2754.9,2754.8,0.00544969]
[1739401440151,9.2078,2754.9,2754.4,0.5808]
[1739401440443,4.98105278,2754.5,2754.4,0.5808]
[1739401440844,4.98105278,2754.5,2754.4,0.2904]
[1739401440845,5.48526705,2754.5,2754.4,0.2904]
[1739401441347,4.98105278,2754.5,2754.4,0.2904]
[1739401442345,4.25507278,2754.5,2754.4,0.2904]
[1739401442542,0.72601,2754.4,2754.0,0.7261]
[1739401442738,3.2078,2754.3,2753.6,0.7262]
[1739401443144,3.23807,2754.2,2754.0,1.0328]
[1739401443441,3.23807,2754.2,2754.0,1.75889]
[1739401443442,2.512,2754.2,2754.0,1.75889]
[1739401443647,2.512,2754.2,2754.0,1.83031]
[1739401443857,2.512,2754.2,2754.0,1.1042]
[1739401444143,4.98115278,2754.1,2754.0,1.1042]
[1739401444442,4.98115278,2754.1,2754.0,0.0714]
[1739401444642,0.72624,2753.5,2753.4,1.4588]
[1739401444949,2.512,2753.6,2753.4,1.4588]
[1739401445841,3.23822,2753.6,2753.4,1.4588]
[1739401446045,2.512,2753.6,2753.4,1.4588]
[1739401446750,2.512,2753.6,2753.5,3.93404]
[1739401446937,0.00544969,2753.7,2753.6,0.72621]
[1739401447550,0.00544969,2753.7,2753.4,1.4588]
[1739401447842,0.73163969,2753.7,2753.4,2.18506]
[1739401448038,0.00544969,2753.7,2753.5,0.72622]
[1739401448239,0.73163969,2753.7,2753.4,2.18506]
[1739401448439,0.00544969,2753.7,2753.4,2.18506]
[1739401448649,0.00544969,2753.7,2753.6,0.72621]
[1739401448846,0.00544969,2753.7,2753.5,3.2078]
[1739401449149,0.00544969,2753.7,2753.5,3.93403]
[1739401449448,0.00544969,2753.7,2753.4,1.4588]
[1739401449840,0.00544969,2753.7,2753.4,2.18506]
[1739401450047,0.00544969,2753.7,2753.4,1.4588]
[1739401450249,0.72624,2753.5,2753.4,1.4588]
[1739401450543,4.26052247,2753.7,2752.9,1.5554]
[1739401450753,6.07605247,2753.7,2752.9,1.5554]
[1739401451142,0.7263,2753.3,2753.0,0.72636]
[1739401451343,0.72631,2753.3,2753.0,0.72637]
[1739401451850,0.72628,2753.4,2753.1,0.72633]
[1739401452041,5.7178,2753.5,2752.9,1.5554]
[1739401452240,0.72634,2753.2,2752.9,0.72639]
[1739401452651,0.72631,2753.3,2753.0,0.72636]
[1739401452844,0.72631,2753.3,2752.8,3.2078]
[1739401452845,5.7178,2753.5,2752.8,3.2078]
[1739401453153,4.26052247,2753.7,2753.2,3.2078]
[1739401453346,2.51444969,2753.7,2753.6,0.72621]
[1739401453545,0.00544969,2753.7,2753.6,0.72621]
[1739401453745,0.00544969,2753.7,2753.6,1.01671]
[1739401454643,0.00544969,2753.7,2753.6,0.2905]
[1739401455044,0.73163969,2753.7,2753.6,0.2905]
[1739401455638,10.70351247,2753.7,2753.6,0.2905]
[1739401456039,9.97732247,2753.7,2753.1,0.72633]
[1739401456241,0.72627,2753.4,2753.1,0.72633]
[1739401456442,9.97732247,2753.7,2752.9,3.2078]
[1739401456647,0.72632,2753.2,2752.9,3.93419]
[1739401456846,9.97732247,2753.7,2752.9,3.2078]
[1739401457041,4.25507278,2753.3,2752.9,3.2078]
[1739401457451,0.72635,2753.1,2752.9,3.2078]
[1739401457650,3.23437,2753.0,2752.9,3.2078]
[1739401457951,2.508,2753.0,2752.9,3.2078]
[1739401458151,2.508,2753.0,2752.9,3.9342]
[1739401458348,7.46832247,2753.7,2753.0,1.81594]
[1739401458653,9.97632247,2753.7,2753.3,0.72627]
[1739401458851,10.70252247,2753.7,2753.3,0.72627]
[1739401459047,9.97632247,2753.7,2753.4,0.72625]
[1739401459242,10.70252247,2753.7,2753.3,0.72628]
[1739401459549,0.00544969,2753.7,2753.6,3.93401]
[1739401459749,4.25507278,2754.5,2753.8,1.81538]
[1739401459959,2.507,2754.7,2754.2,3.2078]
[1739401460150,2.507,2754.7,2754.5,0.72597]
[1739401460847,2.507,2754.7,2754.3,1.49824969]
[1739401461255,3.2078,2754.4,2754.3,1.49824969]
[1739401461451,3.9338,2754.4,2754.3,1.49824969]
[1739401461642,3.2078,2754.4,2754.3,0.00544969]
[1739401461842,0.72597,2754.6,2754.3,0.00544969]
[1739401462055,0.726,2754.4,2754.3,0.00544969]
[1739401462350,0.72596,2754.6,2754.3,0.00544969]
[1739401462554,3.2078,2754.8,2754.3,0.00544969]
[1739401462761,3.2078,2754.8,2754.6,0.72594]
[1739401462953,2.51244969,2754.9,2754.8,0.7259]
[1739401463156,2.51244969,2754.9,2754.7,0.7259]
[1739401463354,2.51244969,2754.9,2754.4,3.2078]
[1739401463557,2.51244969,2754.9,2754.8,0.7259]
[1739401463761,0.00544969,2754.9,2754.4,3.2078]
[1739401464252,0.00544969,2754.9,2754.6,0.72593]
[1739401464454,0.00544969,2754.9,2754.4,3.2078]
[1739401464653,0.72591,2754.8,2754.4,3.2078]
[1739401464853,0.72594,2754.7,2754.3,0.00544969]
[1739401465049,2.506,2754.6,2754.3,0.00544969]
[1739401465253,2.506,2754.6,2754.5,0.72598]
[1739401465454,2.506,2754.6,2754.3,0.00544969]
[1739401465649,0.00544969,2754.9,2754.3,6.00544969]
[1739401465857,0.00544969,2754.9,2754.8,0.7259]
[1739401466258,0.72575,2755.4,2754.8,0.7259]
[1739401466259,3.2078,2755.9,2754.8,9.2078]
[1739401466447,2.505,2755.8,2754.9,2.8609]
[1739401466650,0.72574,2755.4,2755.0,0.72584]
[1739401467250,3.2078,2755.5,2754.9,2.8609]
[1739401467463,4.25507278,2755.7,2754.9,3.58675]
[1739401467464,0.72577,2755.3,2754.9,3.58675]
[1739401467753,3.2078,2755.2,2754.9,1.4242]
[1739401467957,0.72589,2754.9,2754.4,5.46008]
[1739401468162,0.72589,2754.9,2754.5,0.72597]
[1739401468360,3.2078,2754.8,2754.4,2.25228]
[1739401468655,4.25507278,2754.9,2754.3,0.00544969]
[1739401468856,0.72595,2754.6,2754.3,0.00544969]
[1739401469053,4.25507278,2754.5,2754.3,0.00544969]
[1739401469260,3.22997,2754.6,2754.3,0.00544969]
[1739401469557,4.25507278,2754.5,2754.3,0.00544969]
[1739401469760,2.503,2754.4,2753.7,3.2078]
[1739401470061,4.25507278,2754.3,2753.7,3.2078]
[1739401470359,4.25507278,2754.3,2754.1,0.72606]
[1739401470553,3.93376,2754.6,2753.2,1.5057]
[1739401470554,3.2078,2754.6,2754.4,0.72599]
[1739401470750,3.2078,2754.6,2754.3,0.72602]
[1739401471756,4.25507278,2754.7,2754.2,0.00544969]
[1739401472052,2.50844969,2754.8,2754.5,0.72596]
[1739401472560,2.50844969,2754.8,2754.2,0.00544969]
[1739401472960,0.72594,2754.7,2754.2,0.73149969]
[1739401473152,3.2078,2754.5,2754.2,0.00544969]
[1739401473350,0.72597,2754.6,2754.2,0.00544969]
[1739401473556,0.72601,2754.4,2754.2,0.00544969]
[1739401473956,3.2078,2754.5,2754.2,0.00544969]
[1739401474164,4.98110278,2754.3,2754.2,0.00544969]
[1739401476457,5.48508191,2754.3,2754.2,0.00176536]
[1739401476663,11.48508191,2754.3,2754.2,0.00176536]
[1739401477065,5.48508191,2754.3,2754.2,0.00176536]
[1739401477271,10.75905191,2754.3,2753.9,0.2904]
[1739401477466,5.02302,2754.1,2753.2,2.18641]
[1739401477763,3.90350101,2753.5,2753.2,1.4601]
[1739401478063,3.90350101,2753.5,2753.0,3.93416]
[1739401478274,3.90350101,2753.5,2753.1,0.72635]
[1739401478663,3.90350101,2753.5,2753.0,3.2078]
[1739401478970,3.2078,2753.6,2753.0,3.2078]
[1739401479365,3.90350101,2753.5,2753.1,0.72633]
[1739401479566,4.62975101,2753.5,2753.1,0.72633]
[1739401479774,3.90350101,2753.5,2753.0,3.2078]
[1739401480073,3.90350101,2753.5,2753.2,0.72631]
[1739401480570,3.90350101,2753.5,2753.3,0.72627]
[1739401481463,3.90350101,2753.5,2753.0,3.2078]
[1739401481666,3.90350101,2753.5,2753.4,0.72627]
[1739401482065,3.90350101,2753.8,2753.7,0.72619]
[1739401482671,3.90350101,2754.1,2754.0,0.72611]
[1739401483269,0.00544969,2754.8,2754.7,0.72592]
[1739401483463,0.00544969,2754.8,2754.0,3.2078]
[1739401483771,3.90350101,2754.6,2754.4,0.72599]
[1739401484075,4.62946101,2754.6,2754.3,0.72602]
[1739401484569,3.90350101,2754.6,2754.0,3.2078]
[1739401484768,3.90350101,2754.6,2754.2,0.72603]
[1739401484969,3.90350101,2754.6,2754.0,3.2078]
[1739401485168,3.90350101,2754.6,2754.1,0.72607]
[1739401485369,0.72599,2754.5,2754.0,3.2078]
[1739401485573,0.72601,2754.4,2754.1,0.72607]
[1739401485768,3.90350101,2754.6,2754.0,0.2904]
[1739401485971,3.90350101,2754.6,2754.5,0.72598]
[1739401486277,3.90350101,2754.6,2754.0,3.4982]
[1739401486569,4.62947101,2754.6,2754.2,0.72604]
[1739401486770,4.62947101,2754.6,2754.3,0.72601]
[1739401486973,3.90350101,2754.6,2754.0,3.4982]
[1739401487171,3.90350101,2754.6,2754.5,0.72598]
[1739401487967,3.90350101,2754.6,2754.4,0.72599]
[1739401488569,4.62945101,2754.6,2754.3,3.93381]
[1739401488872,4.62946101,2754.6,2754.3,3.93382]
[1739401489067,3.90350101,2754.6,2754.5,0.72598]
[1739401489269,3.90350101,2754.6,2754.3,3.2078]
[1739401489468,4.62945101,2754.6,2754.3,3.93381]
[1739401490370,3.90350101,2754.6,2754.3,3.2078]
[1739401490569,3.90350101,2754.6,2754.0,0.2904]
[1739401490868,3.90350101,2754.3,2754.1,0.72606]
[1739401491667,3.90350101,2754.3,2754.0,0.2904]
[1739401491871,0.72608,2754.1,2754.0,0.2904]
[1739401492267,0.72608,2754.1,2753.8,0.72615]
[1739401492464,3.90350101,2753.9,2753.8,0.72615]
[1739401492967,3.90350101,2753.9,2753.8,0.72616]
[1739401493774,3.2078,2754.1,2753.5,6.58757]
[1739401494080,3.90350101,2754.2,2754.1,0.72608]
[1739401494983,3.90350101,2754.2,2753.6,3.2078]
[1739401494984,0.72609,2754.1,2753.6,3.2078]
[1739401495383,7.11130101,2754.2,2753.6,3.2078]
[1739401495786,0.72612,2754.0,2753.7,0.72617]
[1739401495981,7.11130101,2754.2,2753.6,3.2078]
[1739401496181,0.72625,2753.5,2753.2,5.21691]
[1739401496482,3.90350101,2753.6,2753.2,4.4906]
[1739401496688,3.90350101,2753.6,2753.5,0.72624]
[1739401496885,3.90350101,2753.6,2753.4,0.72626]
[1739401497284,3.90350101,2753.6,2753.5,0.72624]
[1739401497691,3.90350101,2753.9,2753.8,0.72616]
[1739401497887,2.494,2754.1,2753.5,3.2078]
[1739401498182,2.494,2754.1,2754.0,0.72611]
[1739401499284,3.90350101,2754.2,2754.1,0.72608]
[1739401499686,3.90350101,2754.2,2753.9,0.72612]
[1739401499988,7.11130101,2754.2,2753.8,1.3094]
[1739401500190,7.83736101,2754.2,2753.9,0.72611]
[1739401500381,7.11130101,2754.2,2753.8,1.3094]
[1739401500582,0.72613,2754.0,2753.8,1.3094]
[1739401500789,0.72612,2754.0,2753.8,1.3094]
[1739401500984,0.72613,2753.9,2753.5,3.2078]
[1739401501193,3.90350101,2753.9,2753.6,0.72621]
[1739401501494,0.72616,2753.8,2753.6,0.72621]
[1739401501791,3.90350101,2753.9,2753.6,0.72621]
[1739401501988,4.62965101,2753.9,2753.6,0.72621]
[1739401502293,3.90350101,2753.9,2753.3,1.2421]
[1739401502495,0.72628,2753.4,2753.1,0.72633]
[1739401502794,4.40898684,2753.9,2753.2,3.2078]
[1739401502996,3.90350101,2753.9,2753.8,0.72616]
[1739401503183,3.90350101,2753.9,2753.3,3.05784]
[1739401503184,0.00544969,2753.8,2753.3,1.2421]
[1739401503486,3.90350101,2753.6,2753.3,1.2421]
[1739401503686,4.62972101,2753.6,2753.3,1.2421]
[1739401503889,3.90350101,2753.6,2753.5,0.72624]
[1739401504189,3.90350101,2753.6,2753.3,1.2421]
[1739401504385,3.90350101,2753.6,2753.5,0.72624]
[1739401504702,3.90350101,2753.6,2753.3,1.2421]
[1739401505199,3.90350101,2753.6,2753.0,3.2078]
[1739401505493,4.62980101,2753.3,2753.0,3.93417]
[1739401505694,0.72633,2753.2,2753.0,3.2078]
[1739401505883,3.90350101,2753.3,2753.0,3.2078]
[1739401506085,3.90350101,2753.6,2753.0,3.2078]
[1739401506286,3.21324969,2753.8,2753.4,3.93407]
[1739401506495,3.21324969,2753.8,2753.7,0.72619]
[1739401506893,0.72625,2753.5,2752.9,3.2078]
[1739401507194,3.90350101,2753.4,2753.2,0.7263]
[1739401507486,3.90350101,2753.4,2752.9,3.2078]
[1739401507693,3.90350101,2753.7,2753.6,0.72621]
[1739401509498,0.00544969,2753.8,2753.5,3.2078]
[1739401509689,0.00544969,2753.8,2753.7,0.72619]
[1739401512293,0.00544969,2753.8,2753.5,3.2078]
[1739401512600,4.62970101,2753.7,2753.6,0.7262]
[1739401512789,3.90350101,2753.7,2753.6,0.7262]
[1739401513291,3.90350101,2753.7,2753.6,1.0167]
[1739401513488,0.00544969,2753.8,2753.7,0.72619]
[1739401513894,0.00544969,2753.8,2753.6,0.2905]
[1739401514195,4.62969101,2753.7,2753.6,0.2905]
[1739401515100,4.62969101,2753.7,2753.6,0.3738]
[1739401515295,5.13538283,2753.7,2753.6,0.3738]
[1739401515798,5.13538283,2753.7,2753.6,0.0833]
[1739401515998,5.72739283,2753.7,2753.6,0.0833]
[1739401516194,5.72739283,2753.7,2753.1,1.81584]
[1739401516195,5.72739283,2753.7,2752.9,3.2078]
[1739401516397,3.90350101,2753.2,2753.1,0.72634]
[1739401516796,7.11130101,2753.5,2752.9,3.2078]
[1739401516996,2.488,2753.6,2753.5,0.72624]
[1739401517495,3.21422,2753.6,2753.3,0.72628]
[1739401517805,3.90350101,2753.4,2752.9,3.2078]
[1739401518102,3.90350101,2753.4,2753.3,0.72629]
[1739401519401,7.70870101,2753.7,2752.9,3.2078]
[1739401519595,7.70870101,2753.7,2753.5,0.72624]
[1739401519596,7.11669101,2753.7,2753.5,0.72624]
[1739401520001,6.39050101,2753.7,2753.2,3.2078]
[1739401520198,3.90350101,2753.4,2752.9,3.2078]
[1739401520402,4.62977101,2753.4,2753.2,0.72631]
[1739401520710,3.90350101,2753.4,2752.9,3.2078]
[1739401521008,3.90350101,2753.4,2753.2,0.0833]
[1739401521305,4.62979101,2753.4,2753.2,0.0833]
[1739401521507,3.90350101,2753.4,2753.3,0.72629]
[1739401521807,3.90350101,2753.7,2753.2,1.89904]
[1739401522110,0.72628,2753.4,2753.2,0.0833]
[1739401522298,4.62971101,2753.7,2753.5,0.72623]
[1739401522605,0.72629,2753.3,2753.2,0.0833]
[1739401523005,4.62978101,2753.4,2753.2,0.80962]
[1739401523203,0.72629,2753.3,2753.2,0.0833]
[1739401524303,1.23262098,2753.3,2753.2,0.0833]
[1739401524506,2.41272098,2753.3,2753.2,0.0833]
[1739401524904,1.68643098,2753.3,2752.9,3.2078]
[1739401525105,3.90350101,2753.1,2752.9,3.2078]